[Event "Early-Titled-Tuesday-Blitz-January-16-2024"]
[Site "Chess.com"]
[Date "2024.01.16"]
[Round "6"]
[White "sansanathalia"]
[Black "KononenkoD"]
[Result "0-1"]
[WhiteElo "2392"]
[BlackElo "2543"]
[TimeControl "180+1"]
[EndTime "9:12:10 PST"]
[Termination "KononenkoD won by resignation"]

1. e4 {[%clk 0:02:58.9]} 1... d5 {[%clk 0:02:59.5]} 2. exd5 {[%clk 0:02:56.8]}
2... Qxd5 {[%clk 0:03:00.4]} 3. Nc3 {[%clk 0:02:54.3]} 3... Qa5 {[%clk
0:03:00.5]} 4. Bc4 {[%clk 0:02:51.4]} 4... Nf6 {[%clk 0:02:58.8]} 5. Nge2 {[%clk
0:02:49.6]} 5... c5 {[%clk 0:02:56.6]} 6. O-O {[%clk 0:02:47.8]} 6... Nc6 {[%clk
0:02:56.9]} 7. d3 {[%clk 0:02:43.7]} 7... Bg4 {[%clk 0:02:56.5]} 8. f3 {[%clk
0:02:43.3]} 8... Bh5 {[%clk 0:02:55.6]} 9. Ng3 {[%clk 0:02:42.7]} 9... Bg6
{[%clk 0:02:55.7]} 10. f4 {[%clk 0:02:42.7]} 10... e6 {[%clk 0:02:52.3]} 11. Bd2
{[%clk 0:02:40.3]} 11... Qc7 {[%clk 0:02:50.5]} 12. f5 {[%clk 0:02:22.7]} 12...
exf5 {[%clk 0:02:48.6]} 13. Nxf5 {[%clk 0:02:18.4]} 13... Bxf5 {[%clk 0:02:48]}
14. Rxf5 {[%clk 0:02:17.6]} 14... O-O-O {[%clk 0:02:44.5]} 15. Rf1 {[%clk
0:02:12.9]} 15... Nd4 {[%clk 0:02:42.1]} 16. Bf4 {[%clk 0:02:05.9]} 16... Bd6
{[%clk 0:02:41.8]} 17. Bxd6 {[%clk 0:01:57.7]} 17... Rxd6 {[%clk 0:02:36.1]} 18.
Qe1 {[%clk 0:01:53.8]} 18... Rd7 {[%clk 0:02:12.4]} 19. Rc1 {[%clk 0:01:44.4]}
19... Re8 {[%clk 0:02:11]} 20. Qh4 {[%clk 0:01:39.7]} 20... Rde7 {[%clk
0:02:05.9]} 21. Kh1 {[%clk 0:01:28.5]} 21... Kb8 {[%clk 0:02:05.4]} 22. h3
{[%clk 0:01:22]} 22... h5 {[%clk 0:01:46.6]} 23. Rxf6 {[%clk 0:01:16.6]} 23...
gxf6 {[%clk 0:01:43.9]} 24. Nd5 {[%clk 0:01:15.2]} 24... Qd6 {[%clk 0:01:37.4]}
25. Nxe7 {[%clk 0:01:11.5]} 25... Rxe7 {[%clk 0:01:36.7]} 26. Re1 {[%clk
0:01:04.3]} 26... Nf5 {[%clk 0:01:29.9]} 27. Qf2 {[%clk 0:01:00.3]} 27... Ng3+
{[%clk 0:01:17.6]} 28. Kg1 {[%clk 0:00:56.3]} 28... Rxe1+ {[%clk 0:01:06.8]} 29.
Qxe1 {[%clk 0:00:54.5]} 29... a6 {[%clk 0:01:06.3]} 30. Qf2 {[%clk 0:00:38.6]}
30... h4 {[%clk 0:00:56]} 31. Bxf7 {[%clk 0:00:31.3]} 31... Qe5 {[%clk
0:00:52.7]} 32. Bc4 {[%clk 0:00:23.2]} 32... Qxb2 {[%clk 0:00:48.1]} 33. Qe1
{[%clk 0:00:15.8]} 33... Qd4+ {[%clk 0:00:46.5]} 34. Kh2 {[%clk 0:00:14.2]}
34... Qf4 {[%clk 0:00:45.3]} 35. Kg1 {[%clk 0:00:13.9]} 35... Ka7 {[%clk
0:00:43.5]} 36. Bb3 {[%clk 0:00:10.4]} 36... Nf5 {[%clk 0:00:33.7]} 37. Qf2
{[%clk 0:00:09.4]} 37... Qe5 {[%clk 0:00:29.9]} 38. c3 {[%clk 0:00:05.5]} 38...
Ng3 {[%clk 0:00:21.7]} 39. Bc4 {[%clk 0:00:05.1]} 39... b6 {[%clk 0:00:17.7]}
40. d4 {[%clk 0:00:04.8]} 40... Qe4 {[%clk 0:00:15.2]} 41. Bf1 {[%clk
0:00:03.7]} 41... cxd4 {[%clk 0:00:13.9]} 42. cxd4 {[%clk 0:00:03.7]} 42... f5
{[%clk 0:00:13.1]} 43. d5 {[%clk 0:00:02.8]} 43... Qxd5 {[%clk 0:00:12.5]} 44.
Qe3 {[%clk 0:00:03.3]} 44... Qc5 {[%clk 0:00:11.7]} 45. Qxc5 {[%clk 0:00:03]}
45... bxc5 {[%clk 0:00:11.9]} 46. Bc4 {[%clk 0:00:03.3]} 46... Kb6 {[%clk
0:00:10.7]} 47. Kf2 {[%clk 0:00:03.9]} 47... a5 {[%clk 0:00:08.8]} 48. Ke3
{[%clk 0:00:03.5]} 48... Kc6 {[%clk 0:00:08.4]} 49. Kf4 {[%clk 0:00:03.6]} 49...
Kd6 {[%clk 0:00:08.9]} 50. Kg5 {[%clk 0:00:03.7]} 50... Ke5 {[%clk 0:00:07]} 51.
Kxh4 {[%clk 0:00:04]} 51... Ne4 {[%clk 0:00:06.7]} 52. g4 {[%clk 0:00:02.5]}
52... f4 {[%clk 0:00:04.5]} 53. g5 {[%clk 0:00:01.8]} 53... f3 {[%clk
0:00:04.2]} 54. g6 {[%clk 0:00:02]} 54... Kf6 {[%clk 0:00:03.3]} 55. Kg4 {[%clk
0:00:01.7]} 55... f2 {[%clk 0:00:03.3]} 56. Kf3 {[%clk 0:00:01.9]} 56... Nd2+
{[%clk 0:00:03.3]} 57. Kxf2 {[%clk 0:00:02.2]} 57... Nxc4 {[%clk 0:00:04.2]} 58.
Ke2 {[%clk 0:00:03.1]} 58... Kxg6 {[%clk 0:00:04.9]} 59. Kd3 {[%clk 0:00:03.6]}
59... Nb6 {[%clk 0:00:05.6]} 60. Ke4 {[%clk 0:00:03.5]} 60... c4 {[%clk
0:00:05.3]} 61. Kd4 {[%clk 0:00:03.4]} 61... Kh5 {[%clk 0:00:06.2]} 62. a4
{[%clk 0:00:02.2]} 62... Kh4 {[%clk 0:00:05.9]} 63. Kc5 {[%clk 0:00:02.7]} 63...
c3 {[%clk 0:00:06.2]} 64. Kxb6 {[%clk 0:00:03.4]} 64... c2 {[%clk 0:00:07.1]}
65. Kxa5 {[%clk 0:00:04.3]} 65... c1=Q {[%clk 0:00:07.8]} 66. Kb6 {[%clk
0:00:05.2]} 66... Qc8 {[%clk 0:00:08]} 67. a5 {[%clk 0:00:06.1]} 67... Qa8
{[%clk 0:00:08.8]} 68. a6 {[%clk 0:00:06.3]} 68... Kxh3 {[%clk 0:00:09.7]} 69.
a7 {[%clk 0:00:07.1]} 69... Kg4 {[%clk 0:00:10.4]} 70. Ka6 {[%clk 0:00:07.3]}
70... Kf5 {[%clk 0:00:11.3]} 71. Kb6 {[%clk 0:00:08.1]} 71... Ke6 {[%clk
0:00:12.2]} 72. Ka6 {[%clk 0:00:07.9]} 72... Kd7 {[%clk 0:00:13.1]} 73. Kb6
{[%clk 0:00:08.7]} 73... Kc8 {[%clk 0:00:13.6]} 74. Ka6 {[%clk 0:00:09]} 74...
Qb7+ {[%clk 0:00:14.1]} 75. Ka5 {[%clk 0:00:09]} 75... Qxa7+ {[%clk 0:00:14.5]}
0-1

[Event "Early-Titled-Tuesday-Blitz-January-16-2024"]
[Site "Chess.com"]
[Date "2024.01.16"]
[Round "6"]
[White "ScofieldMichael01"]
[Black "carokannlover213"]
[Result "0-1"]
[WhiteElo "2595"]
[BlackElo "2777"]
[TimeControl "180+1"]
[EndTime "9:12:13 PST"]
[Termination "carokannlover213 won by resignation"]

1. e4 {[%clk 0:03:00.9]} 1... c5 {[%clk 0:02:58.5]} 2. Nf3 {[%clk 0:02:56.7]}
2... d6 {[%clk 0:02:58.8]} 3. d4 {[%clk 0:02:57.4]} 3... cxd4 {[%clk 0:02:59.7]}
4. Nxd4 {[%clk 0:02:57.6]} 4... Nf6 {[%clk 0:03:00.2]} 5. Nc3 {[%clk 0:02:58.1]}
5... Nc6 {[%clk 0:03:00.9]} 6. Bg5 {[%clk 0:02:56.2]} 6... e6 {[%clk 0:03:01.2]}
7. Qd3 {[%clk 0:02:54.2]} 7... Be7 {[%clk 0:02:50.6]} 8. Nxc6 {[%clk 0:02:52.4]}
8... bxc6 {[%clk 0:02:50.1]} 9. O-O-O {[%clk 0:02:53.3]} 9... Qa5 {[%clk
0:02:49]} 10. Bd2 {[%clk 0:02:44.9]} 10... Qb6 {[%clk 0:02:47.7]} 11. Be3 {[%clk
0:02:44]} 11... Qa5 {[%clk 0:02:47.2]} 12. Bd2 {[%clk 0:02:44]} 12... Qb6 {[%clk
0:02:44]} 13. Qg3 {[%clk 0:02:22.2]} 13... Rb8 {[%clk 0:02:29.6]} 14. b3 {[%clk
0:02:21.9]} 14... Qc5 {[%clk 0:02:19.2]} 15. Bd3 {[%clk 0:02:17.9]} 15... e5
{[%clk 0:02:12.7]} 16. Kb1 {[%clk 0:02:16.9]} 16... Be6 {[%clk 0:02:10.3]} 17.
h4 {[%clk 0:02:00.3]} 17... a5 {[%clk 0:02:06.7]} 18. h5 {[%clk 0:01:57.7]}
18... Qa3 {[%clk 0:01:26.2]} 19. Bc1 {[%clk 0:01:56.7]} 19... Qb4 {[%clk
0:01:26.2]} 20. Bb2 {[%clk 0:01:50.4]} 20... Rg8 {[%clk 0:01:20.5]} 21. Ka1
{[%clk 0:01:42.2]} 21... Nd7 {[%clk 0:01:14.9]} 22. h6 {[%clk 0:01:38.3]} 22...
g6 {[%clk 0:01:11.9]} 23. Na4 {[%clk 0:01:35.2]} 23... Qb7 {[%clk 0:01:05.6]}
24. c4 {[%clk 0:01:32.1]} 24... Nb6 {[%clk 0:01:02.2]} 25. Nxb6 {[%clk
0:01:24.9]} 25... Qxb6 {[%clk 0:01:02.3]} 26. c5 {[%clk 0:01:07.3]} 26... Qxc5
{[%clk 0:00:58.3]} 27. Rc1 {[%clk 0:01:07.6]} 27... Qb6 {[%clk 0:00:57.2]} 28.
Bc4 {[%clk 0:01:07.9]} 28... a4 {[%clk 0:00:50.7]} 29. Bxe6 {[%clk 0:01:07.7]}
29... fxe6 {[%clk 0:00:51.6]} 30. Rc3 {[%clk 0:00:51.9]} 30... Rf8 {[%clk
0:00:46.9]} 31. f3 {[%clk 0:00:49.2]} 31... Qa6 {[%clk 0:00:44.3]} 32. b4 {[%clk
0:00:41.6]} 32... Rxb4 {[%clk 0:00:38.4]} 33. Ba3 {[%clk 0:00:41.7]} 33... Rc4
{[%clk 0:00:38.4]} 34. Qe1 {[%clk 0:00:38.5]} 34... Kd7 {[%clk 0:00:34.5]} 35.
Qe2 {[%clk 0:00:37.4]} 35... d5 {[%clk 0:00:28.9]} 36. Bxe7 {[%clk 0:00:37.4]}
36... Kxe7 {[%clk 0:00:29]} 37. exd5 {[%clk 0:00:38]} 37... cxd5 {[%clk
0:00:26.8]} 38. Qxe5 {[%clk 0:00:36.3]} 38... Qd6 {[%clk 0:00:21.4]} 39. Qg7+
{[%clk 0:00:28.4]} 39... Rf7 {[%clk 0:00:21.3]} 40. Rxc4 {[%clk 0:00:28.8]}
40... dxc4 {[%clk 0:00:11.5]} 41. Qc3 {[%clk 0:00:26.6]} 41... Rf5 {[%clk
0:00:07]} 42. Qg7+ {[%clk 0:00:25.1]} 42... Ke8 {[%clk 0:00:07.6]} 43. Qc3
{[%clk 0:00:25.9]} 43... Qe5 {[%clk 0:00:07.4]} 44. Rc1 {[%clk 0:00:22.9]} 44...
Qxc3+ {[%clk 0:00:05.6]} 45. Rxc3 {[%clk 0:00:23.8]} 45... Rf4 {[%clk
0:00:06.1]} 46. Ra3 {[%clk 0:00:22.7]} 46... Rh4 {[%clk 0:00:03.1]} 47. Rxa4
{[%clk 0:00:23.2]} 47... Rxh6 {[%clk 0:00:03.7]} 48. Rxc4 {[%clk 0:00:23.9]}
48... Rh2 {[%clk 0:00:04.3]} 49. Rg4 {[%clk 0:00:24.1]} 49... Kf7 {[%clk
0:00:04.1]} 50. Kb2 {[%clk 0:00:24.7]} 50... h5 {[%clk 0:00:04.1]} 51. Rg3
{[%clk 0:00:22.9]} 51... h4 {[%clk 0:00:04.6]} 52. Rh3 {[%clk 0:00:16.7]} 52...
Rxg2+ {[%clk 0:00:04.4]} 53. Kb3 {[%clk 0:00:17.1]} 53... g5 {[%clk 0:00:05]}
54. Rh1 {[%clk 0:00:09.3]} 54... Rg3 {[%clk 0:00:05.1]} 55. a4 {[%clk 0:00:10]}
55... Rxf3+ {[%clk 0:00:05]} 56. Kb4 {[%clk 0:00:10.9]} 56... Kg6 {[%clk
0:00:05.2]} 57. a5 {[%clk 0:00:11.8]} 57... Rf8 {[%clk 0:00:04.7]} 58. a6 {[%clk
0:00:12.2]} 58... Kh5 {[%clk 0:00:05.4]} 59. a7 {[%clk 0:00:11.2]} 59... Ra8
{[%clk 0:00:05.5]} 60. Ra1 {[%clk 0:00:10.7]} 60... h3 {[%clk 0:00:05.8]} 61.
Kc4 {[%clk 0:00:11.6]} 61... g4 {[%clk 0:00:05.8]} 62. Kd3 {[%clk 0:00:12.1]}
62... Kh4 {[%clk 0:00:06.4]} 63. Ke4 {[%clk 0:00:13]} 63... h2 {[%clk
0:00:06.6]} 64. Kf4 {[%clk 0:00:11.2]} 64... g3 {[%clk 0:00:06.9]} 65. Kf3
{[%clk 0:00:08.3]} 65... Kh3 {[%clk 0:00:06.6]} 66. Ra5 {[%clk 0:00:08.3]} 66...
Rf8+ {[%clk 0:00:06.2]} 67. Ke3 {[%clk 0:00:09.2]} 67... h1=Q {[%clk 0:00:06.6]}
68. Rh5+ {[%clk 0:00:09.1]} 68... Kg2 {[%clk 0:00:07.1]} 69. Rxh1 {[%clk
0:00:10]} 69... Kxh1 {[%clk 0:00:08]} 70. Ke4 {[%clk 0:00:10.6]} 70... Ra8
{[%clk 0:00:08.5]} 71. Ke5 {[%clk 0:00:11.5]} 71... Rxa7 {[%clk 0:00:09.4]} 72.
Kxe6 {[%clk 0:00:12.4]} 72... g2 {[%clk 0:00:09.6]} 73. Kf5 {[%clk 0:00:13.3]}
73... g1=Q {[%clk 0:00:10.5]} 74. Kf4 {[%clk 0:00:14.2]} 74... Qb6 {[%clk
0:00:11.1]} 75. Kf5 {[%clk 0:00:15.1]} 75... Rc7 {[%clk 0:00:11.2]} 76. Ke5
{[%clk 0:00:16]} 76... Rc5+ {[%clk 0:00:05.7]} 77. Ke4 {[%clk 0:00:16.9]} 77...
Qb4+ {[%clk 0:00:06.5]} 78. Kd3 {[%clk 0:00:17.6]} 78... Kg2 {[%clk 0:00:07.1]}
79. Ke2 {[%clk 0:00:17.7]} 79... Kg3 {[%clk 0:00:08]} 80. Kd3 {[%clk 0:00:18.6]}
80... Kg4 {[%clk 0:00:08.9]} 81. Ke2 {[%clk 0:00:19.2]} 81... Kg5 {[%clk
0:00:09.8]} 82. Kd3 {[%clk 0:00:20.1]} 82... Kg6 {[%clk 0:00:10.7]} 83. Ke3
{[%clk 0:00:21]} 83... Kg7 {[%clk 0:00:11.6]} 84. Kd3 {[%clk 0:00:21.9]} 84...
Kg8 {[%clk 0:00:12.5]} 85. Ke3 {[%clk 0:00:22.8]} 85... Kh8 {[%clk 0:00:13.4]}
86. Kd3 {[%clk 0:00:23.6]} 86... Rc3+ {[%clk 0:00:14.1]} 87. Kd2 {[%clk
0:00:23.8]} 87... Qb2+ {[%clk 0:00:14.4]} 88. Kd1 {[%clk 0:00:24.7]} 0-1

[Event "Early-Titled-Tuesday-Blitz-January-16-2024"]
[Site "Chess.com"]
[Date "2024.01.16"]
[Round "6"]
[White "RodokininEV"]
[Black "ilqar_74"]
[Result "0-1"]
[WhiteElo "2614"]
[BlackElo "2813"]
[TimeControl "180+1"]
[EndTime "9:12:15 PST"]
[Termination "ilqar_74 won on time"]

1. c4 {[%clk 0:03:00.4]} 1... Nf6 {[%clk 0:02:59.5]} 2. Nc3 {[%clk 0:02:59.9]}
2... d5 {[%clk 0:03:00]} 3. cxd5 {[%clk 0:02:58.5]} 3... Nxd5 {[%clk 0:03:00.9]}
4. g3 {[%clk 0:02:59.1]} 4... e6 {[%clk 0:03:00.8]} 5. Bg2 {[%clk 0:02:58.3]}
5... Be7 {[%clk 0:03:01.4]} 6. Nh3 {[%clk 0:02:55.7]} 6... O-O {[%clk
0:03:01.5]} 7. O-O {[%clk 0:02:54.2]} 7... c5 {[%clk 0:03:01.6]} 8. d3 {[%clk
0:02:48.6]} 8... Nc6 {[%clk 0:03:01.4]} 9. Nf4 {[%clk 0:02:48.3]} 9... Nxc3
{[%clk 0:02:59.2]} 10. bxc3 {[%clk 0:02:48.3]} 10... Bf6 {[%clk 0:02:59.8]} 11.
Qb3 {[%clk 0:02:46.6]} 11... Qc7 {[%clk 0:02:59.5]} 12. Nh5 {[%clk 0:02:41.7]}
12... Be5 {[%clk 0:02:56]} 13. Bf4 {[%clk 0:02:39.2]} 13... Bxf4 {[%clk
0:02:45.9]} 14. Nxf4 {[%clk 0:02:40.1]} 14... b6 {[%clk 0:02:44.9]} 15. Qa4
{[%clk 0:02:28.6]} 15... Bb7 {[%clk 0:02:43.8]} 16. h4 {[%clk 0:02:26.7]} 16...
Rad8 {[%clk 0:02:41.4]} 17. Rab1 {[%clk 0:02:25.9]} 17... g6 {[%clk 0:02:33.3]}
18. h5 {[%clk 0:02:24.9]} 18... Kg7 {[%clk 0:02:32.2]} 19. Qe4 {[%clk
0:02:10.7]} 19... Rd7 {[%clk 0:02:21.3]} 20. Qe3 {[%clk 0:02:10.4]} 20... Qe5
{[%clk 0:02:16.3]} 21. h6+ {[%clk 0:02:04.6]} 21... Kxh6 {[%clk 0:01:42]} 22.
Nxe6+ {[%clk 0:01:23.8]} 22... Qxe3 {[%clk 0:01:41.3]} 23. fxe3 {[%clk
0:01:23.4]} 23... Re8 {[%clk 0:01:41.8]} 24. Nxc5 {[%clk 0:01:16.2]} 24... bxc5
{[%clk 0:01:30.9]} 25. Rxb7 {[%clk 0:01:17.1]} 25... Rxb7 {[%clk 0:01:31.2]} 26.
Bxc6 {[%clk 0:01:17.4]} 26... Ree7 {[%clk 0:01:31.4]} 27. Bxb7 {[%clk
0:01:17.5]} 27... Rxb7 {[%clk 0:01:32.3]} 28. Kf2 {[%clk 0:01:04.1]} 28... Rb2
{[%clk 0:01:29.8]} 29. a4 {[%clk 0:01:04.4]} 29... Ra2 {[%clk 0:01:26.6]} 30.
Rh1+ {[%clk 0:01:04.5]} 30... Kg7 {[%clk 0:01:26.6]} 31. Rh4 {[%clk 0:01:04.9]}
31... a5 {[%clk 0:01:20]} 32. Rc4 {[%clk 0:01:04.8]} 32... Kf6 {[%clk
0:01:19.9]} 33. Kf3 {[%clk 0:01:04.3]} 33... h5 {[%clk 0:01:19]} 34. d4 {[%clk
0:00:58.6]} 34... cxd4 {[%clk 0:01:18.2]} 35. cxd4 {[%clk 0:00:59.5]} 35... g5
{[%clk 0:01:17.9]} 36. Ke4 {[%clk 0:00:55.3]} 36... Rxe2 {[%clk 0:01:16]} 37.
Rc6+ {[%clk 0:00:54.9]} 37... Kg7 {[%clk 0:01:14.8]} 38. Rc5 {[%clk 0:00:55.4]}
38... Kg6 {[%clk 0:01:13.7]} 39. Rxa5 {[%clk 0:00:54.6]} 39... Rg2 {[%clk
0:01:13.8]} 40. Ra6+ {[%clk 0:00:52.9]} 40... f6 {[%clk 0:01:13.6]} 41. d5
{[%clk 0:00:50.7]} 41... Rxg3 {[%clk 0:01:08.2]} 42. d6 {[%clk 0:00:48.8]} 42...
Rg1 {[%clk 0:01:06.1]} 43. Kd5 {[%clk 0:00:47]} 43... Rd1+ {[%clk 0:01:05.6]}
44. Ke6 {[%clk 0:00:45.7]} 44... h4 {[%clk 0:01:04]} 45. d7 {[%clk 0:00:44.2]}
45... Rxd7 {[%clk 0:00:52.8]} 46. Kxd7 {[%clk 0:00:44.4]} 46... h3 {[%clk
0:00:53.3]} 47. Rb6 {[%clk 0:00:40.7]} 47... g4 {[%clk 0:00:51.7]} 48. a5 {[%clk
0:00:38.2]} 48... g3 {[%clk 0:00:45.2]} 49. a6 {[%clk 0:00:35.6]} 49... h2
{[%clk 0:00:42.2]} 50. Rb1 {[%clk 0:00:31.9]} 50... g2 {[%clk 0:00:40.3]} 51. a7
{[%clk 0:00:31]} 51... g1=Q {[%clk 0:00:31.7]} 52. Rxg1+ {[%clk 0:00:25.7]}
52... hxg1=Q {[%clk 0:00:32.6]} 53. a8=Q {[%clk 0:00:26.2]} 53... Qg4+ {[%clk
0:00:21.8]} 54. Ke7 {[%clk 0:00:21.4]} 54... Qb4+ {[%clk 0:00:20.2]} 55. Ke6
{[%clk 0:00:17.5]} 55... Qb3+ {[%clk 0:00:20.3]} 56. Kd6 {[%clk 0:00:17]} 56...
Qd3+ {[%clk 0:00:20.3]} 57. Qd5 {[%clk 0:00:14.5]} 57... Qxe3 {[%clk 0:00:14.9]}
58. Qg8+ {[%clk 0:00:14.6]} 58... Kf5 {[%clk 0:00:14.6]} 59. Qh7+ {[%clk
0:00:13.5]} 59... Kg5 {[%clk 0:00:14]} 60. Qg7+ {[%clk 0:00:12.3]} 60... Kf5
{[%clk 0:00:13.2]} 61. Qh7+ {[%clk 0:00:12.1]} 61... Kg4 {[%clk 0:00:12]} 62.
Qg7+ {[%clk 0:00:10.9]} 62... Qg5 {[%clk 0:00:12]} 63. Qd7+ {[%clk 0:00:09]}
63... f5 {[%clk 0:00:12.5]} 64. Ke5 {[%clk 0:00:07.6]} 64... Qe3+ {[%clk
0:00:09.2]} 65. Kf6 {[%clk 0:00:08]} 65... Qh6+ {[%clk 0:00:09.8]} 66. Ke5
{[%clk 0:00:08]} 66... Qh8+ {[%clk 0:00:10.1]} 67. Ke6 {[%clk 0:00:03.3]} 67...
f4 {[%clk 0:00:09.9]} 68. Qd1+ {[%clk 0:00:01.9]} 68... f3 {[%clk 0:00:09.8]}
69. Qg1+ {[%clk 0:00:01.7]} 69... Kf4 {[%clk 0:00:10.3]} 70. Qc1+ {[%clk
0:00:01.1]} 70... Ke4 {[%clk 0:00:08.6]} 71. Qe1+ {[%clk 0:00:01.4]} 71... Kd3
{[%clk 0:00:07.7]} 72. Qf1+ {[%clk 0:00:01.3]} 72... Ke3 {[%clk 0:00:07.9]} 73.
Qe1+ {[%clk 0:00:01.9]} 73... Kf4 {[%clk 0:00:08.2]} 74. Qd2+ {[%clk 0:00:02.4]}
74... Kg3 {[%clk 0:00:08.1]} 75. Qg5+ {[%clk 0:00:02.5]} 75... Kh2 {[%clk
0:00:08]} 76. Qf4+ {[%clk 0:00:02.3]} 76... Kg2 {[%clk 0:00:08.5]} 77. Qg4+
{[%clk 0:00:02]} 77... Kf2 {[%clk 0:00:08.1]} 0-1

[Event "Early-Titled-Tuesday-Blitz-January-16-2024"]
[Site "Chess.com"]
[Date "2024.01.16"]
[Round "6"]
[White "wild3000"]
[Black "TitarovVasiliYouTube"]
[Result "0-1"]
[WhiteElo "2388"]
[BlackElo "2537"]
[TimeControl "180+1"]
[EndTime "9:12:17 PST"]
[Termination "TitarovVasiliYouTube won by resignation"]

1. e4 {[%clk 0:03:00]} 1... c5 {[%clk 0:02:59.9]} 2. Nf3 {[%clk 0:02:59.2]} 2...
Nf6 {[%clk 0:03:00.4]} 3. Nc3 {[%clk 0:02:58.5]} 3... d5 {[%clk 0:03:00.4]} 4.
exd5 {[%clk 0:02:58.3]} 4... Nxd5 {[%clk 0:03:01.3]} 5. Bb5+ {[%clk 0:02:56.6]}
5... Bd7 {[%clk 0:03:01.1]} 6. Bxd7+ {[%clk 0:02:56.6]} 6... Qxd7 {[%clk
0:03:00.6]} 7. O-O {[%clk 0:02:49.1]} 7... Nc6 {[%clk 0:03:00.7]} 8. Nxd5 {[%clk
0:02:44]} 8... Qxd5 {[%clk 0:03:00.6]} 9. d3 {[%clk 0:02:44.4]} 9... e5 {[%clk
0:02:38.5]} 10. Re1 {[%clk 0:02:44.2]} 10... Be7 {[%clk 0:02:37.5]} 11. Nd2
{[%clk 0:02:41.3]} 11... O-O {[%clk 0:02:36.8]} 12. a4 {[%clk 0:02:37.8]} 12...
b6 {[%clk 0:02:32.9]} 13. Nc4 {[%clk 0:02:36.5]} 13... Rad8 {[%clk 0:02:22.8]}
14. Bd2 {[%clk 0:02:35.2]} 14... Rfe8 {[%clk 0:02:21.7]} 15. Bc3 {[%clk
0:02:31.2]} 15... f6 {[%clk 0:02:21.4]} 16. Qg4 {[%clk 0:02:22.5]} 16... Bf8
{[%clk 0:02:18.3]} 17. h4 {[%clk 0:02:21.2]} 17... Nd4 {[%clk 0:01:03.5]} 18.
Rac1 {[%clk 0:02:13.8]} 18... Qc6 {[%clk 0:00:33.2]} 19. b3 {[%clk 0:02:05.5]}
19... a6 {[%clk 0:00:31.4]} 20. h5 {[%clk 0:01:57]} 20... b5 {[%clk 0:00:28.5]}
21. axb5 {[%clk 0:01:55.1]} 21... axb5 {[%clk 0:00:28.5]} 22. Ne3 {[%clk
0:01:55.2]} 22... Qd7 {[%clk 0:00:24.1]} 23. Qxd7 {[%clk 0:01:31.1]} 23... Rxd7
{[%clk 0:00:25]} 24. Ra1 {[%clk 0:01:31.1]} 24... Rc8 {[%clk 0:00:11.6]} 25. Ra5
{[%clk 0:01:21.7]} 25... Rb7 {[%clk 0:00:11.7]} 26. Kf1 {[%clk 0:01:19]} 26...
g6 {[%clk 0:00:10.9]} 27. Ra6 {[%clk 0:01:15.7]} 27... Kf7 {[%clk 0:00:09.2]}
28. hxg6+ {[%clk 0:00:55.6]} 28... hxg6 {[%clk 0:00:10.1]} 29. Nd5 {[%clk
0:00:49.5]} 29... Bg7 {[%clk 0:00:07.5]} 30. Rc1 {[%clk 0:00:44]} 30... Rd8
{[%clk 0:00:05.3]} 31. Bxd4 {[%clk 0:00:33.5]} 31... cxd4 {[%clk 0:00:05.4]} 32.
Nb4 {[%clk 0:00:31.5]} 32... Rc8 {[%clk 0:00:04.6]} 33. Rca1 {[%clk 0:00:29.8]}
33... Bf8 {[%clk 0:00:04.5]} 34. Ra7 {[%clk 0:00:30.1]} 34... Rcc7 {[%clk
0:00:03.3]} 35. Rxb7 {[%clk 0:00:29]} 35... Rxb7 {[%clk 0:00:04.2]} 36. Nc6
{[%clk 0:00:26.3]} 36... Rc7 {[%clk 0:00:03.7]} 37. Ra7 {[%clk 0:00:24.9]} 37...
Rxa7 {[%clk 0:00:03.4]} 38. Nxa7 {[%clk 0:00:25.1]} 38... b4 {[%clk 0:00:03.9]}
39. Nc6 {[%clk 0:00:22.9]} 39... Ke6 {[%clk 0:00:04.5]} 40. Ke2 {[%clk 0:00:22]}
40... Kd5 {[%clk 0:00:04.5]} 41. Na5 {[%clk 0:00:21.1]} 41... Kc5 {[%clk
0:00:03.6]} 42. Nc4 {[%clk 0:00:21.2]} 42... Be7 {[%clk 0:00:04]} 43. g4 {[%clk
0:00:21.3]} 43... Kd5 {[%clk 0:00:04.2]} 44. f3 {[%clk 0:00:21.2]} 44... f5
{[%clk 0:00:04.2]} 45. gxf5 {[%clk 0:00:20.1]} 45... gxf5 {[%clk 0:00:04.9]} 46.
Nd2 {[%clk 0:00:19.8]} 46... Bg5 {[%clk 0:00:04.5]} 47. Nf1 {[%clk 0:00:19.7]}
47... Bf4 {[%clk 0:00:04.1]} 48. Kf2 {[%clk 0:00:19.9]} 48... Ke6 {[%clk
0:00:03.7]} 49. Kg2 {[%clk 0:00:19.1]} 49... Kf6 {[%clk 0:00:03.5]} 50. Kf2
{[%clk 0:00:18.2]} 50... Kg5 {[%clk 0:00:03.6]} 51. Kg2 {[%clk 0:00:18.5]} 51...
Kh4 {[%clk 0:00:03.9]} 52. Nh2 {[%clk 0:00:17.6]} 52... Bg5 {[%clk 0:00:01.9]}
53. Nf1 {[%clk 0:00:16.5]} 53... Be3 {[%clk 0:00:02.6]} 54. Ng3 {[%clk
0:00:16.5]} 54... Kg5 {[%clk 0:00:02.5]} 55. Kh3 {[%clk 0:00:16.1]} 55... Bf4
{[%clk 0:00:02.6]} 56. Ne2 {[%clk 0:00:16.2]} 56... Bd2 {[%clk 0:00:02.3]} 57.
Ng3 {[%clk 0:00:16.3]} 57... Kf4 {[%clk 0:00:03.1]} 58. Kg2 {[%clk 0:00:15.8]}
58... Be1 {[%clk 0:00:03.3]} 59. Nh5+ {[%clk 0:00:13.4]} 59... Ke3 {[%clk
0:00:03.7]} 60. Ng7 {[%clk 0:00:13.6]} 60... Kd2 {[%clk 0:00:03]} 61. Nxf5
{[%clk 0:00:13.7]} 61... Kxc2 {[%clk 0:00:03.9]} 62. Kf1 {[%clk 0:00:13.3]}
62... Bd2 {[%clk 0:00:03.3]} 63. Ke2 {[%clk 0:00:13.6]} 63... Bf4 {[%clk
0:00:03.3]} 64. Ne7 {[%clk 0:00:12.7]} 64... Kxb3 {[%clk 0:00:04]} 65. Nd5
{[%clk 0:00:13]} 65... Ka3 {[%clk 0:00:03.7]} 66. Nb6 {[%clk 0:00:13]} 66... b3
{[%clk 0:00:03.1]} 67. Nc4+ {[%clk 0:00:13.2]} 67... Ka2 {[%clk 0:00:03.4]} 68.
Kd1 {[%clk 0:00:05.6]} 68... b2 {[%clk 0:00:03.8]} 69. Nxb2 {[%clk 0:00:06.5]}
69... Kxb2 {[%clk 0:00:04.7]} 70. Ke2 {[%clk 0:00:07.2]} 70... Kc3 {[%clk
0:00:05.1]} 0-1